bitfinex/quotes_ETHUSD_20251111
["timestamp","ask_amount","ask_price","bid_price","bid_amount"]
[1762826757083,0.6407,3566.8,3565.5,4.18948146]
[1762826757370,0.6407,3566.8,3565.5,0.405504]
[1762826757533,0.6407,3566.8,3565.5,3.21014878]
[1762826757733,1.1432,3567.4,3566.5,2.80379304]
[1762826758036,1.1432,3567.4,3565.8,2.80441976]
[1762826758037,0.2402912,3567.4,3566.4,0.1104]
[1762826758358,0.2402912,3567.4,3566.2,0.405504]
[1762826758359,0.4522,3567.4,3566.9,2.80349342]
[1762826758734,0.4522,3567.4,3567.0,2.80346767]
[1762826758937,0.4522,3567.4,3566.4,2.80394795]
[1762826759675,0.4522,3567.4,3567.1,2.8033318]
[1762826760171,0.4522,3567.4,3566.6,2.8037853]
[1762826760380,0.4522,3567.4,3566.3,4.18948146]
[1762826760583,0.4522,3567.4,3565.9,4.18948146]
[1762826760798,0.4522,3567.4,3565.4,0.49988205]
[1762826760947,0.4522,3567.4,3565.5,4.29988146]
[1762826761154,0.4522,3567.4,3566.4,2.80389171]
[1762826761357,4.38898146,3567.9,3567.4,2.80310543]
[1762826761358,0.1995,3567.9,3567.4,2.80310543]
[1762826761904,0.1995,3567.9,3567.8,2.80284769]
[1762826762068,0.1995,3567.9,3567.6,2.80294667]
[1762826762069,0.001,3568.1,3567.6,2.80298448]
[1762826762390,0.001,3568.1,3567.8,2.8027741]
[1762826762890,0.4532,3568.1,3567.6,2.80292708]
[1762826763098,0.4532,3568.1,3567.7,2.80290475]
[1762826763393,0.4532,3568.1,3567.1,4.18948146]
[1762826763892,0.4532,3568.1,3567.6,2.80294734]
[1762826764193,0.4532,3568.1,3566.8,0.1104]
[1762826764194,0.4532,3568.1,3566.4,2.80389238]
[1762826764399,0.4818,3567.5,3566.4,4.18948146]
[1762826764568,0.1885,3567.6,3567.3,2.803178]
[1762826764969,0.1885,3567.9,3567.1,0.02803397]
[1762826765177,0.1885,3567.9,3567.7,2.80287029]
[1762826766592,0.934,3567.8,3566.1,0.405504]
[1762826766773,0.934,3567.8,3566.8,2.80363214]
[1762826766774,0.4818,3567.6,3566.8,2.80363214]
[1762826766974,0.4818,3567.6,3566.4,0.405504]
[1762826767201,0.9522,3567.5,3566.3,0.002]
[1762826767493,0.9522,3567.5,3566.6,2.80373004]
[1762826767494,0.1434,3567.4,3566.6,2.80373004]
[1762826767694,0.5956,3567.4,3566.3,0.002]
[1762826767896,0.4522,3567.4,3566.4,2.80394795]
[1762826768113,0.4522,3567.3,3566.4,2.80391719]
[1762826768403,0.4522,3567.3,3566.3,0.002]
[1762826768701,0.4522,3567.3,3566.4,2.80392292]
[1762826768998,0.4522,3567.3,3566.5,2.80386774]
[1762826769405,0.4522,3567.3,3566.3,2.80602466]
[1762826769406,0.4522,3567.3,3566.6,2.8037758]
[1762826770000,0.76770082,3567.9,3566.4,0.1104]
[1762826770209,0.34408226,3567.8,3566.5,0.405504]
[1762826770413,0.4522,3567.8,3567.2,2.80324575]
[1762826770572,0.4522,3567.8,3567.2,2.8032711]
[1762826770989,0.4522,3567.8,3567.3,2.80321993]
[1762826771423,0.4522,3567.8,3566.5,0.405504]
[1762826771715,0.4522,3567.8,3566.3,4.70738546]
[1762826771919,0.4522,3567.8,3566.5,0.405504]
[1762826772220,0.4522,3567.8,3566.8,2.80356163]
[1762826772431,0.4522,3567.8,3566.3,0.002]
[1762826772735,0.67798935,3567.7,3566.6,2.80373302]
[1762826773023,0.67798935,3567.7,3566.5,2.80386049]
[1762826773229,0.67798935,3567.7,3566.3,0.002]
[1762826773230,0.4522,3567.6,3566.3,0.002]
[1762826773402,0.4522,3567.6,3566.4,2.80392815]
[1762826773403,0.14427784,3567.5,3566.4,2.80392815]
[1762826773614,0.14427784,3567.5,3566.3,0.002]
[1762826773785,0.4522,3567.4,3566.3,0.002]
[1762826773978,0.4522,3567.4,3566.6,2.8037555]
[1762826774182,0.4522,3567.4,3566.3,0.002]
[1762826774183,0.6703,3566.4,3566.3,0.002]
[1762826774380,1.1703,3566.4,3565.9,0.002]
[1762826774624,0.4818,3566.0,3565.9,0.002]
[1762826774997,0.934,3566.0,3565.9,0.002]
[1762826775819,1.0774,3566.0,3565.9,0.002]
[1762826777547,1.5774,3566.0,3565.9,0.002]
[1762826777754,1.38998907,3566.0,3565.1,0.01]
[1762826777902,0.5,3564.8,3564.3,0.003]
[1762826778104,0.72441287,3565.7,3564.3,0.003]
[1762826778105,0.5975,3564.4,3564.3,0.003]
[1762826778402,0.692,3564.9,3564.3,0.003]
[1762826778626,1.1442,3564.9,3564.3,0.003]
[1762826778801,0.4522,3564.8,3564.3,0.003]
[1762826779204,0.4818,3564.4,3564.3,0.003]
[1762826779635,0.934,3564.4,3564.3,0.003]
[1762826781425,1.434,3564.4,3564.3,0.003]
[1762826781626,1.434,3564.4,3563.1,0.013]
[1762826781627,0.5,3563.8,3563.1,0.013]
[1762826781865,0.6703,3563.2,3563.1,0.013]
[1762826782149,1.3653,3563.2,3562.1,0.01]
[1762826782313,0.6703,3562.4,3562.1,0.01]
[1762826782714,1.1225,3562.4,3562.1,0.01]
[1762826783301,1.30425,3562.4,3562.1,0.01]
[1762826783537,1.80425,3562.4,3562.1,0.01]
[1762826784249,1.30425,3562.4,3562.1,0.01]
[1762826784428,1.1225,3562.4,3562.1,0.01]
[1762826784948,1.6225,3562.4,3562.1,0.01]
[1762826785325,2.882212,3562.4,3562.1,0.01]
[1762826785531,3.382212,3562.4,3562.1,0.01]
[1762826785926,0.4569,3562.2,3562.1,0.01]
[1762826786140,0.9569,3562.2,3562.1,0.01]
[1762826786453,0.9274,3562.2,3562.1,0.01]
[1762826786651,1.4274,3562.2,3562.1,0.01]
[1762826786869,0.9274,3562.2,3562.1,0.01]
[1762826787077,1.65849,3562.2,3562.1,0.01]
[1762826787577,0.1885,3562.4,3562.1,0.01]
[1762826788134,0.659,3562.4,3562.1,0.01]
[1762826788339,0.659,3562.4,3562.2,2.80719008]
[1762826788566,0.659,3562.4,3562.1,2.81731902]
[1762826788767,0.4569,3562.2,3562.1,0.01]
[1762826789303,1.4274,3562.2,3562.1,0.01]
[1762826789465,1.58899,3562.2,3562.1,0.01]
[1762826789667,1.08899,3562.2,3562.1,0.01]
[1762826789981,0.693,3562.3,3562.1,0.01]
[1762826790586,0.693,3562.3,3562.2,2.80725394]
[1762826790788,0.4705,3562.7,3562.2,2.80725394]
[1762826790956,1.1635,3562.7,3562.1,2.81731597]
[1762826791303,0.693,3562.7,3562.1,0.01]
[1762826791780,0.693,3562.7,3562.1,2.81732833]
[1762826792087,0.693,3562.7,3562.5,2.80695436]
[1762826792298,0.1862,3563.5,3563.1,2.80654486]
[1762826792450,0.693,3563.5,3563.3,2.80632859]
[1762826792654,0.693,3563.5,3562.7,2.80685996]
[1762826792655,0.693,3563.5,3563.4,2.80630858]
[1762826792855,0.1434,3564.4,3563.4,0.1534]
[1762826793099,0.693,3564.5,3563.8,2.80593028]
[1762826793400,0.693,3564.5,3564.1,2.80568048]
[1762826793688,0.693,3564.5,3564.3,2.80558825]
[1762826793895,0.693,3564.5,3563.3,0.1534]
[1762826794200,0.693,3564.5,3564.3,2.80552652]
[1762826794620,0.1157,3565.0,3564.1,0.1534]
[1762826794822,0.693,3565.2,3564.1,0.1534]
[1762826794823,0.693,3565.2,3564.2,0.02805678]
[1762826794983,0.693,3565.2,3565.1,2.8049704]
[1762826795387,0.693,3565.2,3564.1,0.3068]
[1762826795600,0.693,3565.2,3565.0,2.80497602]
[1762826795801,0.693,3565.2,3564.1,0.3068]
[1762826795998,0.693,3565.2,3565.1,2.8049704]
[1762826796203,4.18948146,3566.5,3565.3,2.80474272]
[1762826796204,0.692,3565.9,3565.3,2.80474272]
[1762826796399,0.692,3565.9,3565.4,2.80471632]
[1762826796400,0.15372,3565.8,3565.4,2.80471632]
[1762826796683,0.1862,3567.2,3565.5,2.80464996]
[1762826796684,0.8782,3566.3,3565.5,2.80464996]
[1762826796886,0.8782,3566.3,3565.4,2.80472761]
[1762826797104,0.4705,3566.2,3565.5,2.80463892]
[1762826797302,0.4705,3566.2,3565.8,2.8043499]
[1762826797628,0.5,3566.1,3564.8,2.80517041]
[1762826797796,0.18487,3566.0,3564.2,0.405504]
[1762826798000,0.5,3565.4,3564.1,0.1534]
[1762826798196,1.1625,3565.3,3564.1,0.1534]
[1762826798506,1.1625,3565.3,3564.2,2.80567117]
[1762826798714,0.4705,3565.2,3564.2,2.80567117]
[1762826799231,0.4705,3565.2,3564.3,2.8055959]
[1762826799522,0.4705,3565.2,3564.1,0.1534]
[1762826800037,0.5,3565.0,3563.8,0.1534]
[1762826800322,0.4705,3565.2,3563.8,0.1534]
[1762826800480,0.1862,3564.9,3563.8,0.1534]
[1762826800880,0.4705,3565.2,3564.4,2.8055046]
[1762826801084,0.001,3565.4,3565.1,0.1534]
[1762826801284,0.001,3565.4,3564.5,4.18948146]
[1762826801681,0.001,3565.4,3564.2,3.21113961]
[1762826801901,0.001,3565.4,3565.2,2.80488335]
[1762826802097,0.001,3565.4,3565.3,2.95821305]
[1762826803234,0.001,3565.4,3565.3,3.11161305]
[1762826803400,0.001,3565.4,3565.3,3.51711705]
[1762826803601,0.001,3565.4,3565.3,7.70659851]
[1762826804345,0.001,3567.4,3567.0,2.80347072]
[1762826804528,0.001,3567.4,3566.8,2.80362983]
[1762826804702,0.001,3567.4,3566.5,4.18948146]
[1762826805048,0.001,3567.4,3567.3,2.95664054]
[1762826805250,0.001,3567.4,3567.3,3.11004054]
[1762826805414,0.001,3567.4,3567.3,3.51554454]
[1762826805818,0.001,3567.4,3566.9,7.14641798]
[1762826805819,0.4579,3567.4,3566.5,0.1534]
[1762826806005,0.9284,3567.4,3566.6,2.80378608]
[1762826806205,0.001,3567.4,3566.8,2.80360401]
[1762826806507,0.001,3567.4,3566.5,0.3068]
[1762826807038,0.001,3567.4,3567.2,2.80330323]
[1762826807238,0.001,3567.4,3566.6,0.558904]
[1762826807444,0.001,3567.4,3566.5,0.1534]
[1762826807645,0.001,3567.4,3566.5,0.558904]
[1762826807818,0.001,3567.4,3567.1,2.80338688]
[1762826808141,0.001,3567.4,3566.5,0.558904]
[1762826808443,0.001,3567.4,3567.3,2.95664054]
[1762826809113,0.001,3567.4,3567.3,3.11004054]
[1762826809317,0.001,3567.4,3567.3,3.13807294]
[1762826809521,0.001,3567.4,3567.3,3.51554454]
[1762826812457,1e-08,3568.2,3567.7,2.80292625]
[1762826812777,1e-08,3568.2,3567.0,2.80347631]
[1762826812924,1e-08,3568.2,3567.5,0.405504]
[1762826813116,1e-08,3568.2,3567.3,2.95663946]
[1762826813117,1e-08,3568.2,3568.1,2.80261203]
[1762826813357,1e-08,3568.2,3568.1,2.95601203]
[1762826813659,1e-08,3568.2,3568.1,3.51491603]
[1762826814167,0.001,3569.5,3568.5,0.405504]
[1762826814366,0.001,3569.5,3568.8,3.36096631]
[1762826814776,0.001,3569.5,3569.4,2.8015913]
[1762826814976,0.001,3569.5,3569.4,3.1083913]
[1762826815277,0.001,3569.5,3568.5,2.80229248]
[1762826815278,0.9916,3569.5,3569.0,2.80182925]
[1762826815485,0.001,3569.5,3568.2,0.405504]
[1762826815771,0.001,3569.5,3568.4,2.80237641]
[1762826815979,0.001,3569.5,3569.4,2.8015913]
[1762826816960,0.001,3569.5,3569.3,2.80164694]
[1762826817276,0.001,3569.5,3569.4,2.8015913]
[1762826817979,0.001,3569.5,3569.4,2.9549913]
[1762826818177,0.001,3569.5,3569.4,3.1083913]
[1762826818377,0.001,3569.5,3569.4,3.3604953]
[1762826818966,0.001,3569.5,3569.4,3.5138953]
[1762826820342,0.001,3570.7,3570.6,2.80064975]
[1762826820672,0.001,3570.7,3569.5,0.1534]
[1762826820868,0.4923,3570.5,3569.5,0.405504]
[1762826821076,0.4993,3570.7,3569.7,0.405504]
[1762826821077,0.001,3570.7,3569.7,0.405504]
[1762826821242,0.001,3570.3,3570.2,2.80096353]
[1762826821442,0.001,3570.3,3570.2,3.20646753]
[1762826821748,0.001,3570.3,3570.2,3.51326753]
[1762826822277,0.001,3570.3,3570.2,4.01314958]
[1762826822987,0.001,3570.7,3570.6,3.20615375]
[1762826823283,0.001,3570.7,3570.6,7.82775541]
[1762826823444,1e-08,3571.5,3571.4,3.85880845]
[1762826823644,1e-08,3571.5,3571.4,7.82712806]
[1762826823895,1e-08,3571.5,3571.4,7.98052806]
[1762826824852,0.001,3571.9,3571.8,3.20521283]
[1762826825054,0.001,3571.9,3571.8,3.85849488]
[1762826825290,0.001,3571.9,3571.8,3.35861283]
[1762826826194,0.001,3571.9,3571.8,3.51201283]
[1762826826558,0.001,3571.9,3571.8,4.01189488]
[1762826826894,0.001,3572.3,3572.2,3.70478138]
[1762826827186,0.001,3572.3,3572.2,7.82650099]
[1762826827343,0.001,3572.3,3572.2,7.97990099]
[1762826827954,0.001,3572.3,3572.2,7.32661894]
[1762826828194,0.001,3572.3,3572.2,7.17321894]
[1762826828760,0.001,3572.3,3572.2,7.82650099]
[1762826829079,0.001,3572.3,3572.2,7.97990099]
[1762826830403,0.001,3572.3,3572.2,7.82650099]
[1762826830564,0.001,3572.3,3572.2,7.32661894]
[1762826830968,0.001,3572.3,3572.2,7.97990099]
[1762826831958,0.001,3572.3,3572.2,7.48001894]
[1762826832195,0.001,3572.3,3572.2,7.97990099]
[1762826832562,0.182,3573.9,3573.8,2.79814203]
[1762826832761,0.182,3573.9,3572.3,11.19726784]
[1762826832762,0.182,3573.9,3572.8,3.96831961]
[1762826832996,0.182,3573.9,3573.5,0.405504]
[1762826833212,0.182,3573.9,3572.9,0.405504]
[1762826833213,0.4983,3573.8,3573.0,0.405504]
[1762826833406,0.4983,3573.8,3573.4,2.79839107]
[1762826833619,0.4983,3573.8,3572.3,3.96831961]
[1762826833766,0.4983,3573.8,3571.4,0.05]
[1762826833767,0.4983,3573.8,3571.5,0.49988205]
[1762826833971,0.4983,3573.8,3571.4,3.96831961]
[1762826834207,0.9983,3573.8,3572.4,2.79917359]
[1762826834416,0.5,3573.7,3571.4,3.96831961]
[1762826834593,0.5,3573.6,3572.3,2.79925554]
[1762826834793,0.5,3573.6,3571.4,3.96831961]
[1762826834794,1.1873,3573.7,3572.2,2.79935489]
[1762826835111,1.1873,3573.7,3571.3,2.8001008]
[1762826835112,0.5,3573.2,3571.3,2.8001008]
[1762826835299,0.5,3573.2,3571.0,2.80033604]
[1762826835300,0.182,3572.1,3571.0,2.80033604]
[1762826835471,0.182,3572.1,3571.6,2.7998656]
[1762826835698,0.4983,3572.0,3571.4,2.79994508]
[1762826835866,0.4983,3572.0,3570.8,0.1534]
[1762826836075,0.4983,3572.0,3571.5,2.79987301]
[1762826836272,0.4983,3572.0,3570.4,6.76912589]
[1762826836273,0.4983,3572.0,3570.4,4.12171961]
[1762826836468,0.4983,3572.0,3571.4,2.79997559]
[1762826836906,0.4983,3572.0,3571.3,2.80008271]
[1762826837083,0.4983,3572.0,3569.9,2.8011384]
[1762826837084,0.4983,3572.0,3570.5,2.80072818]
[1762826837408,0.4983,3572.0,3570.0,4.12171961]
[1762826837575,0.182,3572.1,3570.5,4.46820166]
[1762826837777,0.182,3572.1,3572.0,2.79955207]
[1762826838112,0.4983,3572.5,3571.9,2.79963044]
[1762826838113,0.001,3572.0,3571.9,2.79963044]
[1762826839795,0.001,3572.0,3571.9,3.35853444]
[1762826839976,0.001,3572.0,3571.9,3.20513444]
[1762826840376,0.9916,3572.0,3571.4,0.002]
[1762826840592,0.4933,3572.0,3571.4,0.002]
[1762826840792,0.001,3572.0,3571.4,0.407504]
[1762826841013,0.001,3572.0,3571.9,2.79963044]
[1762826841926,0.001,3572.0,3571.9,3.35853444]
[1762826842129,0.001,3572.0,3571.9,3.51193444]
[1762826842281,0.001,3572.0,3571.9,4.01181649]
[1762826842485,0.001,3572.0,3571.9,3.51193444]
[1762826842911,0.001,3572.0,3571.9,4.01181649]
[1762826843629,0.001,3572.0,3571.9,3.20513444]
[1762826844692,0.001,3572.0,3571.9,3.35853444]
[1762826845035,0.001,3572.0,3571.9,4.01181649]
[1762826846583,0.001,3572.0,3571.9,5.27152849]
[1762826847147,0.001,3572.0,3571.9,5.29952479]
[1762826847903,0.001,3572.0,3571.9,3.35853444]
[1762826848107,0.001,3572.0,3571.9,3.20513444]
[1762826849006,0.001,3572.0,3571.9,2.79963044]
[1762826849657,0.001,3572.0,3571.4,0.002]
[1762826849803,0.1986,3571.9,3571.4,0.002]
[1762826850205,0.4939,3571.5,3571.4,0.002]
[1762826850712,0.9788,3571.5,3571.0,0.002]
[1762826851010,0.4939,3571.1,3571.0,0.002]
[1762826851434,0.9788,3571.1,3571.0,0.002]
[1762826853950,1.4788,3571.1,3571.0,0.002]
[1762826854120,1.62668,3571.1,3571.0,0.002]
[1762826854322,1.12668,3571.1,3571.0,0.002]
[1762826854719,1.62668,3571.1,3571.0,0.002]
[1762826854920,1.12668,3571.1,3571.0,0.002]
[1762826856119,1.81568,3571.1,3571.0,0.002]
[1762826856926,2.31568,3571.1,3571.0,0.002]
[1762826857157,1.81568,3571.1,3571.0,0.002]
[1762826857362,2.31568,3571.1,3571.0,0.002]
[1762826857524,2.31568,3571.1,3570.6,0.002]
[1762826857525,0.5,3571.0,3570.6,0.002]
[1762826857732,0.6531,3570.7,3570.6,0.002]
[1762826858179,1.138,3570.7,3570.6,0.002]
[1762826858970,2.397712,3570.7,3570.2,0.002]
[1762826859167,0.9939,3570.3,3570.2,0.002]
[1762826859369,1.9567512,3570.3,3570.2,0.002]
[1762826859531,1.259712,3570.2,3568.3,0.1554]
[1762826859731,0.4939,3569.0,3568.4,2.8022987]
[1762826859964,0.4849,3570.1,3569.2,2.80172738]
[1762826860149,0.9628512,3570.3,3568.7,2.8021305]
[1762826860150,0.1986,3569.3,3568.7,2.8021305]
[1762826860450,0.1986,3569.3,3568.3,0.1554]
[1762826860651,0.4849,3569.2,3568.5,2.80229169]
[1762826860964,0.4849,3569.2,3568.0,0.1554]
[1762826861163,0.4849,3569.2,3568.3,2.8024044]
[1762826861354,0.4849,3569.2,3568.0,0.1554]
[1762826861355,0.4849,3569.2,3567.8,0.405504]
[1762826861667,0.4849,3569.2,3568.3,2.80245129]
[1762826862048,0.1986,3568.4,3568.3,2.80245129]
[1762826862475,0.1986,3568.4,3568.2,2.8025136]
[1762826862969,0.1986,3568.4,3568.3,2.80245495]
[1762826863535,0.1986,3568.4,3568.2,2.80251729]
[1762826863735,0.1986,3568.4,3568.0,2.80268746]
[1762826863736,0.1986,3568.4,3568.3,2.80245495]
[1762826864669,1.1774,3568.4,3567.8,0.405504]
[1762826864876,1.1774,3568.4,3567.9,2.80276913]
[1762826865077,0.1986,3567.8,3567.7,2.80292625]
[1762826865381,0.6925,3567.8,3567.7,2.80292625]
[1762826866135,0.1986,3568.4,3567.7,2.80292625]
[1762826866136,0.1986,3568.4,3568.2,2.80253349]
[1762826866357,0.1986,3569.3,3568.3,0.1554]
[1762826866544,0.1986,3569.3,3569.2,2.80174829]
[1762826866872,0.4849,3569.2,3569.1,2.80182679]
[1762826867166,0.1986,3569.3,3569.1,2.80182679]
[1762826867167,0.1986,3569.3,3569.2,2.80174829]
[1762826867372,0.6835,3569.3,3569.2,2.80174829]
[1762826867572,1.1774,3569.3,3569.2,2.80174829]
[1762826868232,0.1986,3569.7,3569.1,0.02801826]
[1762826868437,0.1986,3570.2,3569.2,0.405504]
[1762826868669,0.4849,3570.1,3569.8,2.80121814]
[1762826869032,0.4939,3569.9,3569.8,2.80121814]
[1762826869236,0.4849,3570.1,3569.8,2.80121814]
[1762826869567,0.4849,3570.6,3570.2,2.80090526]
[1762826869867,0.4849,3570.5,3570.2,2.80090526]
[1762826870072,0.4939,3570.3,3570.2,2.80090526]
[1762826870375,0.4939,3570.3,3568.6,0.1667]
[1762826870541,0.5,3569.8,3568.0,0.1667]
[1762826870776,0.5,3569.8,3567.4,3.96831961]
[1762826870777,0.1986,3568.1,3567.4,3.96831961]
[1762826871041,0.1986,3568.1,3567.3,0.002]
[1762826871366,0.1986,3569.0,3567.4,4.42391961]
[1762826871531,0.6835,3569.0,3568.6,2.8022166]
[1762826871933,0.4939,3568.7,3567.5,0.405504]
[1762826872137,0.4849,3568.9,3567.1,3.96831961]
[1762826872138,0.1593,3568.5,3567.9,2.8026948]
[1762826872435,0.1593,3568.5,3567.8,2.80278752]
[1762826872640,0.4849,3568.4,3567.8,2.80278752]
[1762826872861,0.6891,3567.9,3567.1,0.1554]
[1762826873156,0.1986,3567.9,3567.1,2.80333945]
[1762826873356,0.1986,3567.9,3566.9,0.002]
[1762826873357,0.6835,3567.9,3566.9,0.002]
[1762826873757,0.6835,3567.9,3567.0,0.1554]
[1762826873962,0.4939,3567.4,3566.9,0.002]
[1762826874165,0.4849,3567.8,3566.9,0.002]
[1762826874166,0.4905,3567.0,3566.9,0.002]
[1762826874786,0.4905,3567.0,3564.9,0.1667]
[1762826874787,0.9754,3567.0,3564.9,0.1667]
[1762826875079,0.3573,3566.6,3566.2,2.80408294]
[1762826875236,0.3573,3566.6,3565.5,0.405504]
[1762826875437,0.808,3566.6,3565.9,2.80433912]
[1762826875737,0.808,3566.6,3565.1,4.19022269]
[1762826875938,0.808,3566.6,3566.2,2.80409644]
[1762826876672,0.808,3566.6,3566.1,2.80417628]
[1762826877852,0.808,3566.6,3566.2,2.80409935]
[1762826878369,0.808,3566.6,3565.8,2.80441286]
[1762826878566,0.808,3566.6,3565.9,2.80434068]
[1762826878770,0.808,3566.6,3566.1,2.80413573]
[1762826878950,0.808,3566.6,3566.0,2.80424902]
[1762826879148,0.808,3566.6,3565.1,4.19022269]
[1762826879374,0.808,3566.6,3565.8,2.80435529]
[1762826879559,0.808,3566.6,3565.6,2.80455842]
[1762826879560,0.808,3566.6,3565.2,0.405504]
[1762826879775,0.808,3566.6,3566.4,2.80394058]
[1762826880161,0.1986,3567.1,3566.5,2.80586933]
[1762826880360,0.43944246,3568.5,3566.5,2.80586933]
[1762826880361,0.1954,3567.3,3567.2,2.80331912]
[1762826880889,0.4507,3567.8,3567.6,2.80300398]
[1762826881094,0.1986,3567.9,3567.8,2.80284769]
[1762826881598,0.4507,3568.2,3568.0,2.80265825]
[1762826881599,0.6461,3568.2,3568.0,2.80265825]
[1762826881889,0.1954,3567.9,3567.2,0.405504]
[1762826882188,0.1954,3568.2,3568.1,2.80261203]
[1762826882484,0.1954,3568.2,3567.2,0.405504]
[1762826882684,0.1954,3568.2,3567.4,0.405504]
[1762826882685,0.4507,3568.1,3567.4,0.405504]
[1762826882901,0.6611,3567.5,3566.5,0.002]
[1762826883297,0.4507,3567.4,3567.0,2.80343335]
[1762826883485,0.4507,3567.4,3566.5,0.002]
[1762826883791,0.1954,3567.5,3566.5,0.002]
[1762826883996,0.4507,3567.4,3566.5,0.002]
[1762826884151,0.4507,3567.4,3567.0,2.8034718]
[1762826884472,0.4507,3567.4,3567.1,2.80337068]
[1762826884693,0.4507,3567.4,3566.5,0.002]
[1762826884694,0.4507,3567.4,3567.0,2.8034549]
[1762826884894,0.4507,3567.4,3566.9,2.8035548]
[1762826885110,0.4507,3567.4,3567.1,2.80333983]
[1762826885296,0.4507,3567.4,3566.5,0.002]
[1762826885884,0.4507,3567.4,3567.2,2.8033033]
[1762826886175,0.4507,3567.4,3567.0,2.80344844]
[1762826886387,0.4507,3567.4,3567.3,2.80324054]
[1762826886745,0.1954,3567.5,3567.3,2.80324054]
[1762826886746,0.4507,3568.6,3567.4,0.405504]
[1762826886893,0.1954,3568.7,3568.1,0.405504]
[1762826887223,0.1954,3568.7,3568.6,2.80221935]
[1762826887591,1.1118,3568.7,3567.3,4.19022269]
[1762826887889,0.1874,3568.5,3567.6,0.405504]
[1762826888307,0.1954,3570.1,3568.5,0.405504]
[1762826888308,0.1954,3569.7,3568.5,0.405504]
[1762826888515,0.1954,3570.1,3569.5,2.80145039]
[1762826888714,0.1954,3570.1,3568.9,0.405504]
[1762826888879,0.4507,3570.0,3568.7,0.405504]
[1762826889073,0.4507,3570.0,3568.7,3.2075846]
[1762826889309,0.4507,3570.0,3568.8,2.80206231]
[1762826889482,0.4507,3570.0,3569.2,2.80168108]
[1762826889695,0.4507,3570.0,3568.9,0.405504]
[1762826889881,0.4507,3569.9,3568.6,0.4521]
[1762826890235,0.4507,3569.9,3568.9,2.8019645]
[1762826890512,0.4507,3569.9,3569.0,2.80190217]
[1762826890679,0.4507,3569.9,3568.5,0.405504]
[1762826891022,0.4507,3569.9,3568.4,0.1667]
[1762826891023,0.4507,3570.9,3570.1,2.8009831]
[1762826891316,0.4507,3570.9,3569.0,4.19022269]
[1762826891317,0.1954,3571.0,3570.2,0.1707]
[1762826891523,0.1954,3571.0,3569.4,4.59572669]
[1762826891524,0.6461,3571.0,3569.4,4.19022269]
[1762826891814,0.001,3569.7,3569.1,0.1707]
[1762826891989,0.001,3569.7,3569.2,0.405504]
[1762826892198,0.001,3569.7,3569.2,3.20723986]
[1762826892490,0.001,3569.7,3569.1,0.1707]
[1762826892876,0.001,3569.7,3569.6,3.65903833]
[1762826893080,0.001,3569.7,3569.1,2.97250088]
[1762826893280,0.001,3569.7,3569.5,2.80149287]
[1762826893510,0.001,3569.7,3569.6,2.80143433]
[1762826893913,0.001,3569.7,3569.6,4.11113833]
[1762826894419,0.001,3569.7,3569.6,4.61102038]
[1762826894723,0.001,3569.7,3569.6,4.11113833]
[1762826896641,0.001,3569.7,3569.6,4.61102038]
[1762826896843,0.001,3570.1,3570.0,3.20662444]
[1762826897063,0.001,3570.1,3570.0,8.32905833]
[1762826897219,0.001,3570.5,3570.4,7.89641537]
[1762826897417,0.001,3570.5,3570.4,7.84863332]
[1762826897621,0.001,3570.5,3570.4,8.30073332]
[1762826898559,0.001,3570.5,3570.4,3.20631063]
[1762826898721,0.001,3570.5,3569.6,0.405504]
[1762826898922,0.001,3570.5,3570.1,2.80097999]
[1762826899128,0.001,3570.5,3569.6,0.857604]
[1762826899441,0.001,3570.5,3569.5,4.19022269]
[1762826899442,0.001,3570.5,3570.4,2.80080663]
[1762826899874,0.001,3570.5,3570.3,2.80086306]
[1762826900043,0.001,3570.5,3570.3,2.80080831]
[1762826900248,0.001,3570.5,3570.4,2.80080663]
[1762826900458,0.001,3570.5,3569.8,0.405504]
[1762826900688,0.001,3570.5,3570.4,2.80080663]
[1762826901301,0.001,3570.5,3570.4,4.11051063]
[1762826903549,0.001,3570.5,3570.4,4.61039268]
[1762826904761,0.001,3570.5,3570.4,1.80958605]
[1762826905089,0.001,3570.5,3570.3,4.19022269]
[1762826905090,0.9174,3570.5,3569.3,4.36092269]
[1762826905270,0.1906,3570.4,3570.0,2.80106365]
[1762826905469,0.1906,3570.4,3569.7,2.80135423]
[1762826905681,0.53033659,3570.4,3569.8,2.80120426]
[1762826905888,0.53033659,3570.4,3569.3,4.36092269]
[1762826905889,0.1906,3570.4,3569.4,3.2070953]
[1762826906058,0.1906,3570.4,3569.5,2.80151281]
[1762826906265,0.1906,3570.4,3570.0,2.80104404]
[1762826906585,0.1906,3570.4,3569.8,2.80124587]
[1762826906951,0.1906,3570.4,3570.1,2.80103755]
[1762826907366,0.1906,3570.4,3569.4,0.405504]
[1762826907367,0.6857,3570.4,3569.4,0.405504]
[1762826907588,0.6857,3570.4,3569.9,3.2066655]
[1762826907767,0.6857,3570.4,3569.9,0.405504]
[1762826907968,0.4951,3570.3,3569.9,2.80115584]
[1762826909205,0.001,3570.5,3570.0,2.80111699]
[1762826909390,0.4951,3570.4,3570.0,2.80111699]
[1762826909769,0.4951,3570.4,3569.9,2.80117834]
[1762826910090,0.4951,3570.4,3570.0,2.80110218]
[1762826910495,0.4951,3570.4,3569.5,0.405504]
[1762826910496,0.4584,3570.1,3569.5,0.405504]
[1762826910681,0.33973659,3570.3,3568.4,0.1667]
[1762826910682,0.6387,3569.6,3568.4,0.1667]
[1762826911005,0.6387,3569.6,3568.5,0.405504]